[Event "8th Gibraltar U16-Junior 2018"]
[Site "Caleta"]
[Date "2018.08.17"]
[Round "2"]
[White "Cox, Toby"]
[Black "Jain, Anushree"]
[Result "1-0"]
[ECO "C30"]
[WhiteElo "1479"]
[BlackElo "1006"]
[Annotator "NA RC"]
[PlyCount "43"]
[EventDate "2018.08.17"]
[EventType "swiss"]
[EventCountry "GGB"]
[SourceTitle "playchess.com"]
[Source "ChessBase"]
[SourceQuality "1"]
[TimeControl "6600+10"]

1. e4 {[%emt 0:00:00]} e5 {[%emt 0:00:09]} 2. f4 {[%emt 0:00:00]} f6 {[%emt 0:00:34]} 3. fxe5 {[%emt 0:00:00]} fxe5 {[%emt 0:00:23]} 4. Qh5+ {[%emt 0:00:03]} Ke7 {[%emt 0:02:44]} 5. Qxe5+ {[%emt 0:00:05]} Kf7 {[%emt 0:01:09]} 6. Bc4+ {[%emt 0:00:03]} d5 {[%emt 0:05:05]} 7. Bxd5+ {[%emt 0:00:06]} Kg6 {[%emt 0:01:12]} 8. Nf3 {[%emt 0:02:38]} Be7 {[%emt 0:01:45]} 9. Qg3+ {[%emt 0:00:28]} Bg5 {[%emt 0:04:58]} 10. Nxg5 {[%emt 0:01:05]} Qxg5 {[%emt 0:00:44]} 11. Bf7+ {[%emt 0:00:05]} Kf6 {[%emt 0:01:51]} 12. O-O+ {[%emt 0:00:06]} Bf5 {[%emt 0:00:51]} 13. Rxf5+ {[%emt 0:00:11]} Qxf5 {[%emt 0:00:34]} 14. exf5 {[%emt 0:00:04]} Kxf7 {[%emt 0:00:19]} 15. Qxc7+ {[%emt 0:00:04]} Ne7 {[%emt 0:00:24]} 16. Qxb7 {[%emt 0:00:21]} Nbc6 {[%emt 0:00:40]} 17. Nc3 {[%emt 0:00:31]} Rhb8 {[%emt 0:02:20]} 18. Qd7 {[%emt 0:00:30]} Re8 {[%emt 0:06:18]} 19. d3 {[%emt 0:02:01]} Kg8 {[%emt 0:03:43]} 20. Qe6+ {[%emt 0:00:33]} Kf8 {[%emt 0:03:04]} 21. f6 {[%emt 0:00:06]} gxf6 {[%emt 0:00:26]} 22. Bh6# {[%emt 0:00:04]} 1-0

[Event "8th Gibraltar U16-Junior 2018"]
[Site "Caleta"]
[Date "2018.08.17"]
[Round "2"]
[White "Manocha, Shobhin"]
[Black "Tombolis, Christopher"]
[Result "0-1"]
[ECO "B73"]
[WhiteElo "1461"]
[BlackElo "1900"]
[Annotator "NA RC"]
[PlyCount "96"]
[EventDate "2018.08.17"]
[EventType "swiss"]
[EventCountry "GGB"]
[SourceTitle "playchess.com"]
[Source "ChessBase"]
[SourceQuality "1"]
[TimeControl "6600+10"]

1. e4 {[%emt 0:00:00]} c5 {[%emt 0:00:00]} 2. Nf3 {[%emt 0:00:00]} Nc6 {[%emt 0:00:00]} 3. d4 {[%emt 0:00:00]} cxd4 {[%emt 0:00:00]} 4. Nxd4 {[%emt 0:00:05]} Nf6 {[%emt 0:00:02]} 5. Nc3 {[%emt 0:00:15]} d6 {[%emt 0:00:51]} 6. Nxc6 {[%emt 0:01:20]} bxc6 {[%emt 0:00:04]} 7. Be2 {[%emt 0:01:26]} g6 {[%emt 0:00:07]} 8. Be3 {[%emt 0:01:08]} Bg7 {[%emt 0:00:08]} 9. O-O {[%emt 0:00:26]} O-O {[%emt 0:00:06]} 10. h3 {[%emt 0:01:44]} Qc7 {[%emt 0:00:07]} 11. f4 {[%emt 0:00:40]} Rb8 {[%emt 0:02:45]} 12. Rb1 {[%emt 0:01:12]} Rd8 {[%emt 0:00:40]} 13. Bf3 {[%emt 0:03:29]} Ba6 {[%emt 0:01:09]} 14. Be2 {[%emt 0:03:42]} Bxe2 {[%emt 0:00:33]} 15. Qxe2 {[%emt 0:00:18]} d5 {[%emt 0:06:17]} 16. e5 {[%emt 0:06:20]} d4 {[%emt 0:06:57]} 17. exf6 {[%emt 0:04:24]} exf6 {[%emt 0:00:10]} 18. Bd2 {[%emt 0:06:41]} dxc3 {[%emt 0:00:24]} 19. Bxc3 {[%emt 0:01:54]} f5 {[%emt 0:01:59]} 20. Bxg7 {[%emt 0:06:37]} Kxg7 {[%emt 0:00:01]} 21. Qc4 {[%emt 0:04:29]} Qb6+ {[%emt 0:00:21]} 22. Kh1 {[%emt 0:02:22]} Kg8 {[%emt 0:07:13]} 23. b3 {[%emt 0:10:04]} Rd4 {[%emt 0:00:35]} 24. Qc3 {[%emt 0:01:10]} Rbd8 {[%emt 0:00:44]} 25. Rbe1 {[%emt 0:04:42]} Qa6 {[%emt 0:00:26]} 26. a4 {[%emt 0:00:45]} Re4 {[%emt 0:08:37]} 27. Rd1 {[%emt 0:02:08]} Rde8 {[%emt 0:07:42]} 28. Qd3 {[%emt 0:06:00]} Qb6 {[%emt 0:03:03]} 29. Qc3 {[%emt 0:01:04]} Qc7 {[%emt 0:05:09]} 30. Qc5 {[%emt 0:05:36]} Re2 {[%emt 0:08:41]} 31. Qc3 {[%emt 0:03:03]} h5 {[%emt 0:08:36]} 32. Rde1 {[%emt 0:05:42]} Rxe1 {[%emt 0:02:57]} 33. Rxe1 {[%emt 0:00:08]} Re4 {[%emt 0:06:10]} 34. g3 {[%emt 0:06:12]} Qe7 {[%emt 0:01:35]} 35. Rd1 {[%emt 0:01:22]} Re2 {[%emt 0:04:25]} 36. Qxc6 {[%emt 0:03:25]} Qe3 {[%emt 0:02:49]} 37. Rg1 {[%emt 0:03:25]} h4 {[%emt 0:01:47]} 38. Rg2 {[%emt 0:07:07]} Re1+ {[%emt 0:00:53]} 39. Kh2 {[%emt 0:00:21]} hxg3+ {[%emt 0:00:42]} 40. Rxg3 {[%emt 0:00:24]} Re2+ {[%emt 0:02:01]} 41. Rg2 {[%emt 0:00:40]} Qxf4+ {[%emt 0:00:24]} 42. Kh1 {[%emt 0:00:18]} Qf1+ {[%emt 0:04:50]} 43. Kh2 {[%emt 0:00:13]} Re1 {[%emt 0:00:59]} 44. Rg3 {[%emt 0:01:46]} f4 {[%emt 0:02:47]} 45. Rg4 {[%emt 0:00:52]} Re2+ {[%emt 0:00:33]} 46. Rg2 {[%emt 0:00:04]} f3 {[%emt 0:00:34]} 47. Rxe2 {[%emt 0:00:28]} fxe2 {[%emt 0:00:35]} 48. Qe8+ {[%emt 0:00:26]} Kh7 {[%emt 0:00:02]} 0-1

[Event "8th Gibraltar U16-Junior 2018"]
[Site "Caleta"]
[Date "2018.08.17"]
[Round "2"]
[White "Dharmasena, Gavith"]
[Black "Carroll, Thomas"]
[Result "0-1"]
[ECO "B90"]
[WhiteElo "1433"]
[BlackElo "1965"]
[Annotator "NA RC"]
[PlyCount "60"]
[EventDate "2018.08.17"]
[EventType "swiss"]
[EventCountry "GGB"]
[SourceTitle "playchess.com"]
[Source "ChessBase"]
[SourceQuality "1"]
[TimeControl "6600+10"]

1. e4 {[%emt 0:00:00]} c5 {[%emt 0:00:00]} 2. Nf3 {[%emt 0:00:00]} d6 {[%emt 0:00:00]} 3. d4 {[%emt 0:00:08]} cxd4 {[%emt 0:00:01]} 4. Nxd4 {[%emt 0:00:04]} Nf6 {[%emt 0:00:05]} 5. Nc3 {[%emt 0:00:05]} a6 {[%emt 0:00:03]} 6. Be3 {[%emt 0:00:15]} e5 {[%emt 0:00:03]} 7. Nf3 {[%emt 0:00:45]} Be7 {[%emt 0:00:05]} 8. h3 {[%emt 0:00:36]} O-O {[%emt 0:00:15]} 9. Qd2 {[%emt 0:01:15]} h6 {[%emt 0:01:43]} 10. Be2 {[%emt 0:01:16]} Be6 {[%emt 0:00:19]} 11. O-O {[%emt 0:01:12]} Nbd7 {[%emt 0:01:20]} 12. Rfd1 {[%emt 0:01:24]} b5 {[%emt 0:00:54]} 13. a3 {[%emt 0:00:43]} Nb6 {[%emt 0:02:48]} 14. b3 {[%emt 0:02:39]} Rc8 {[%emt 0:00:21]} 15. Bd3 {[%emt 0:00:22]} Qc7 {[%emt 0:03:05]} 16. Ne2 {[%emt 0:01:21]} Nbd7 {[%emt 0:04:44]} 17. Ng3 {[%emt 0:01:05]} Rfd8 {[%emt 0:08:39]} 18. Nh4 {[%emt 0:03:54]} Nh7 {[%emt 0:06:34]} 19. Nhf5 {[%emt 0:00:31]} Bg5 {[%emt 0:02:58]} 20. Bxg5 {[%emt 0:00:19]} Nxg5 {[%emt 0:01:46]} 21. Ne7+ {[%emt 0:00:47]} Kh8 {[%emt 0:01:22]} 22. Nxc8 {[%emt 0:00:29]} Qxc8 {[%emt 0:00:16]} 23. a4 {[%emt 0:00:38]} Bxh3 {[%emt 0:03:00]} 24. axb5 {[%emt 0:00:56]} Nf6 {[%emt 0:05:53]} 25. Qe2 {[%emt 0:02:18]} Bxg2 {[%emt 0:01:29]} 26. Kxg2 {[%emt 0:05:58]} Qh3+ {[%emt 0:00:12]} 27. Kg1 {[%emt 0:00:08]} Ng4 {[%emt 0:01:46]} 28. Rd2 {[%emt 0:05:59]} Nh2 {[%emt 0:01:40]} 29. f3 {[%emt 0:02:09]} Nhxf3+ {[%emt 0:01:30]} 30. Kf2 {[%emt 0:00:36]} Qh2+ {[%emt 0:00:30]} 0-1

[Event "8th Gibraltar U16-Junior 2018"]
[Site "Caleta"]
[Date "2018.08.17"]
[Round "2"]
[White "Rayner, Hugo"]
[Black "Atara, Omeet J"]
[Result "0-1"]
[ECO "B01"]
[WhiteElo "1391"]
[BlackElo "1704"]
[Annotator "NA RC"]
[PlyCount "72"]
[EventDate "2018.08.17"]
[EventType "swiss"]
[EventCountry "GGB"]
[SourceTitle "playchess.com"]
[Source "ChessBase"]
[SourceQuality "1"]
[TimeControl "6600+10"]

1. e4 {[%emt 0:00:00]} d5 {[%emt 0:00:00]} 2. exd5 {[%emt 0:00:00]} Qxd5 {[%emt 0:00:04]} 3. Nc3 {[%emt 0:00:00]} Qa5 {[%emt 0:00:07]} 4. d4 {[%emt 0:00:05]} c6 {[%emt 0:01:47]} 5. Nf3 {[%emt 0:01:16]} Bf5 {[%emt 0:00:10]} 6. Be3 {[%emt 0:00:45]} e6 {[%emt 0:00:59]} 7. Bc4 {[%emt 0:02:35]} Bb4 {[%emt 0:02:58]} 8. Bd2 {[%emt 0:01:33]} Qc7 {[%emt 0:06:07]} 9. O-O {[%emt 0:00:32]} Nf6 {[%emt 0:02:25]} 10. Re1 {[%emt 0:01:18]} O-O {[%emt 0:03:26]} 11. h3 {[%emt 0:01:18]} Rd8 {[%emt 0:01:56]} 12. a3 {[%emt 0:00:48]} Be7 {[%emt 0:01:49]} 13. Be3 {[%emt 0:00:29]} Nbd7 {[%emt 0:06:30]} 14. Qd2 {[%emt 0:02:24]} Nb6 {[%emt 0:01:00]} 15. Ba2 {[%emt 0:01:29]} Nbd5 {[%emt 0:09:51]} 16. Nxd5 {[%emt 0:01:00]} cxd5 {[%emt 0:00:56]} 17. Bf4 {[%emt 0:01:57]} Qxc2 {[%emt 0:04:25]} 18. Qxc2 {[%emt 0:01:05]} Bxc2 {[%emt 0:00:00]} 19. Rac1 {[%emt 0:00:17]} Rac8 {[%emt 0:00:10]} 20. Bb8 {[%emt 0:04:21]} a6 {[%emt 0:02:52]} 21. Ba7 {[%emt 0:01:17]} Be4 {[%emt 0:09:58]} 22. Bb6 {[%emt 0:03:17]} Rf8 {[%emt 0:05:17]} 23. b4 {[%emt 0:02:08]} Nd7 {[%emt 0:03:26]} 24. Bc5 {[%emt 0:01:31]} Nxc5 {[%emt 0:02:41]} 25. bxc5 {[%emt 0:00:46]} Bf6 {[%emt 0:02:46]} 26. Red1 {[%emt 0:01:04]} Rc7 {[%emt 0:01:56]} 27. Bb1 {[%emt 0:01:00]} Bxb1 {[%emt 0:00:47]} 28. Rxb1 {[%emt 0:00:02]} Re8 {[%emt 0:01:15]} 29. Rbc1 {[%emt 0:01:39]} Rec8 {[%emt 0:00:54]} 30. a4 {[%emt 0:01:26]} b6 {[%emt 0:00:53]} 31. Rb1 {[%emt 0:00:48]} bxc5 {[%emt 0:00:06]} 32. Rdc1 {[%emt 0:00:27]} g6 {[%emt 0:01:12]} 33. dxc5 {[%emt 0:01:47]} Rxc5 {[%emt 0:00:06]} 34. Rxc5 {[%emt 0:00:36]} Rxc5 {[%emt 0:02:43]} 35. Kf1 {[%emt 0:00:23]} Rc4 {[%emt 0:00:10]} 36. Ke2 {[%emt 0:00:45]} Rxa4 {[%emt 0:00:57]} 0-1

[Event "8th Gibraltar U16-Junior 2018"]
[Site "Caleta"]
[Date "2018.08.17"]
[Round "2"]
[White "Vyas, Param"]
[Black "Shepherd, Tom"]
[Result "0-1"]
[ECO "D23"]
[WhiteElo "1372"]
[BlackElo "1531"]
[Annotator "NA RC"]
[PlyCount "92"]
[EventDate "2018.08.17"]
[EventType "swiss"]
[EventCountry "GGB"]
[SourceTitle "playchess.com"]
[Source "ChessBase"]
[SourceQuality "1"]
[TimeControl "6600+10"]

1. d4 {[%emt 0:00:00]} d5 {[%emt 0:00:00]} 2. Nf3 {[%emt 0:00:01]} Nf6 {[%emt 0:00:00]} 3. c4 {[%emt 0:00:04]} dxc4 {[%emt 0:00:00]} 4. Qa4+ {[%emt 0:00:05]} c6 {[%emt 0:00:34]} 5. Qxc4 {[%emt 0:00:11]} Bf5 {[%emt 0:00:06]} 6. g3 {[%emt 0:01:14]} e6 {[%emt 0:01:11]} 7. Bg2 {[%emt 0:00:16]} Be7 {[%emt 0:00:09]} 8. O-O {[%emt 0:01:27]} O-O {[%emt 0:00:21]} 9. b3 {[%emt 0:01:17]} Nbd7 {[%emt 0:00:41]} 10. Bb2 {[%emt 0:00:21]} Nb6 {[%emt 0:03:49]} 11. Qc1 {[%emt 0:00:58]} Nbd5 {[%emt 0:05:18]} 12. Nh4 {[%emt 0:07:20]} Be4 {[%emt 0:04:34]} 13. Nd2 {[%emt 0:05:33]} Bxg2 {[%emt 0:00:36]} 14. Kxg2 {[%emt 0:02:42]} Rc8 {[%emt 0:02:35]} 15. e4 {[%emt 0:11:12]} Nb4 {[%emt 0:00:48]} 16. a3 {[%emt 0:04:49]} Nd3 {[%emt 0:00:02]} 17. Qc3 {[%emt 0:00:05]} Nxb2 {[%emt 0:00:02]} 18. Qxb2 {[%emt 0:00:07]} c5 {[%emt 0:03:16]} 19. Nhf3 {[%emt 0:11:01]} cxd4 {[%emt 0:01:37]} 20. Nxd4 {[%emt 0:02:54]} Bc5 {[%emt 0:07:20]} 21. N4f3 {[%emt 0:02:10]} Qd3 {[%emt 0:04:53]} 22. Ne5 {[%emt 0:02:05]} Qd4 {[%emt 0:02:13]} 23. Ndc4 {[%emt 0:15:14]} Qxb2 {[%emt 0:00:24]} 24. Nxb2 {[%emt 0:00:19]} Bd4 {[%emt 0:00:07]} 25. Ned3 {[%emt 0:01:19]} Nxe4 {[%emt 0:01:14]} 26. Rac1 {[%emt 0:01:09]} Nd2 {[%emt 0:02:30]} 27. Rfd1 {[%emt 0:02:05]} Nxb3 {[%emt 0:01:01]} 28. Rc4 {[%emt 0:00:32]} Bxb2 {[%emt 0:03:12]} 29. Nxb2 {[%emt 0:00:08]} Rxc4 {[%emt 0:00:03]} 30. Nxc4 {[%emt 0:00:02]} Nc5 {[%emt 0:00:44]} 31. Kf3 {[%emt 0:00:47]} g6 {[%emt 0:01:21]} 32. Ke3 {[%emt 0:00:25]} Rc8 {[%emt 0:01:53]} 33. Ne5 {[%emt 0:00:18]} Kf8 {[%emt 0:01:37]} 34. Rc1 {[%emt 0:01:00]} Ke7 {[%emt 0:01:33]} 35. a4 {[%emt 0:01:40]} f6 {[%emt 0:01:51]} 36. Nd3 {[%emt 0:01:03]} b6 {[%emt 0:00:15]} 37. a5 {[%emt 0:02:16]} Kd7 {[%emt 0:00:36]} 38. axb6 {[%emt 0:00:57]} axb6 {[%emt 0:00:19]} 39. Nb4 {[%emt 0:00:37]} Ra8 {[%emt 0:01:20]} 40. Rd1+ {[%emt 0:00:48]} Kc7 {[%emt 0:00:51]} 41. Rc1 {[%emt 0:00:26]} Ra3+ {[%emt 0:01:00]} 42. Ke2 {[%emt 0:01:12]} Ra4 {[%emt 0:02:23]} 43. Rb1 {[%emt 0:02:02]} Ra3 {[%emt 0:03:11]} 44. Rc1 {[%emt 0:00:27]} Kb7 {[%emt 0:01:09]} 45. h3 {[%emt 0:01:20]} Rb3 {[%emt 0:00:33]} 46. Na2 {[%emt 0:00:35]} Rb2+ {[%emt 0:00:08]} 0-1

[Event "8th Gibraltar U16-Junior 2018"]
[Site "Caleta"]
[Date "2018.08.17"]
[Round "2"]
[White "Shigaeva, Arina"]
[Black "Schulz, Victor"]
[Result "0-1"]
[ECO "D02"]
[WhiteElo "1271"]
[BlackElo "1510"]
[Annotator "NA RC"]
[PlyCount "56"]
[EventDate "2018.08.17"]
[EventType "swiss"]
[EventCountry "GGB"]
[SourceTitle "playchess.com"]
[Source "ChessBase"]
[SourceQuality "1"]
[TimeControl "6600+10"]

1. d4 {[%emt 0:00:00]} Nf6 {[%emt 0:00:00]} 2. Bf4 {[%emt 0:00:00]} d5 {[%emt 0:00:13]} 3. Nf3 {[%emt 0:00:25]} Bf5 {[%emt 0:00:15]} 4. h3 {[%emt 0:00:43]} e6 {[%emt 0:00:54]} 5. e3 {[%emt 0:00:41]} Nbd7 {[%emt 0:00:58]} 6. Be2 {[%emt 0:01:27]} Be7 {[%emt 0:02:21]} 7. Nbd2 {[%emt 0:03:07]} O-O {[%emt 0:00:56]} 8. O-O {[%emt 0:00:49]} c5 {[%emt 0:10:47]} 9. c3 {[%emt 0:01:58]} c4 {[%emt 0:04:35]} 10. Ne5 {[%emt 0:10:12]} Nxe5 {[%emt 0:00:36]} 11. Bxe5 {[%emt 0:03:16]} Bd6 {[%emt 0:01:13]} 12. Bxd6 {[%emt 0:18:40]} Qxd6 {[%emt 0:00:17]} 13. f4 {[%emt 0:01:18]} Ne4 {[%emt 0:01:15]} 14. Nxe4 {[%emt 0:02:26]} Bxe4 {[%emt 0:00:09]} 15. g4 {[%emt 0:04:35]} Qe7 {[%emt 0:01:35]} 16. Qe1 {[%emt 0:00:55]} f5 {[%emt 0:03:41]} 17. g5 {[%emt 0:02:26]} g6 {[%emt 0:01:21]} 18. h4 {[%emt 0:01:07]} h5 {[%emt 0:02:52]} 19. gxh6 {[%emt 0:03:07]} Qh7 {[%emt 0:00:07]} 20. Qg3 {[%emt 0:02:05]} Qxh6 {[%emt 0:00:18]} 21. Kf2 {[%emt 0:03:37]} Kf7 {[%emt 0:01:04]} 22. Qg5 {[%emt 0:08:10]} Rh8 {[%emt 0:00:41]} 23. Bf3 {[%emt 0:06:17]} Qxh4+ {[%emt 0:01:09]} 24. Qxh4 {[%emt 0:00:21]} Rxh4 {[%emt 0:00:07]} 25. Bxe4 {[%emt 0:00:20]} dxe4 {[%emt 0:02:11]} 26. Kg3 {[%emt 0:00:56]} Rah8 {[%emt 0:00:13]} 27. b3 {[%emt 0:06:38]} Rh2 {[%emt 0:00:15]} 28. Rf2 {[%emt 0:03:11]} R8h3# {[%emt 0:00:18]} 0-1

[Event "8th Gibraltar U16-Junior 2018"]
[Site "Caleta"]
[Date "2018.08.17"]
[Round "2"]
[White "Mahtani, Johan"]
[Black "Howell, Oliver W"]
[Result "0-1"]
[ECO "A80"]
[WhiteElo "1166"]
[BlackElo "1853"]
[Annotator "NA RC"]
[PlyCount "64"]
[EventDate "2018.08.17"]
[EventType "swiss"]
[EventCountry "GGB"]
[SourceTitle "playchess.com"]
[Source "ChessBase"]
[SourceQuality "1"]
[TimeControl "6600+10"]

1. d4 {[%emt 0:00:00]} e6 {[%emt 0:00:00]} 2. Nc3 {[%emt 0:00:05]} f5 {[%emt 0:00:04]} 3. Nf3 {[%emt 0:00:14]} Nf6 {[%emt 0:00:10]} 4. Bf4 {[%emt 0:00:17]} Be7 {[%emt 0:00:21]} 5. e3 {[%emt 0:00:12]} O-O {[%emt 0:00:13]} 6. Be2 {[%emt 0:00:16]} b6 {[%emt 0:00:46]} 7. d5 {[%emt 0:00:14]} Bd6 {[%emt 0:20:27]} 8. Bxd6 {[%emt 0:01:55]} cxd6 {[%emt 0:00:10]} 9. Nb5 {[%emt 0:00:21]} Nxd5 {[%emt 0:01:04]} 10. Nxd6 {[%emt 0:00:28]} Nc6 {[%emt 0:02:07]} 11. Nd4 {[%emt 0:00:52]} Nxd4 {[%emt 0:01:27]} 12. Qxd4 {[%emt 0:00:22]} Qc7 {[%emt 0:09:23]} 13. Nc4 {[%emt 0:00:10]} Ba6 {[%emt 0:01:35]} 14. Na3 {[%emt 0:00:41]} Bxe2 {[%emt 0:02:00]} 15. Kxe2 {[%emt 0:00:13]} Rac8 {[%emt 0:07:46]} 16. c4 {[%emt 0:01:43]} Ne7 {[%emt 0:01:04]} 17. Rhd1 {[%emt 0:00:36]} d5 {[%emt 0:01:42]} 18. cxd5 {[%emt 0:01:58]} Nxd5 {[%emt 0:00:32]} 19. g3 {[%emt 0:00:49]} Rfd8 {[%emt 0:04:46]} 20. Kf1 {[%emt 0:09:03]} a6 {[%emt 0:15:02]} 21. Qd2 {[%emt 0:03:09]} Qd6 {[%emt 0:05:38]} 22. Rac1 {[%emt 0:02:40]} Rxc1 {[%emt 0:01:22]} 23. Rxc1 {[%emt 0:00:16]} b5 {[%emt 0:01:27]} 24. Rd1 {[%emt 0:03:12]} Nxe3+ {[%emt 0:03:15]} 25. Qxe3 {[%emt 0:00:43]} Qxd1+ {[%emt 0:00:14]} 26. Kg2 {[%emt 0:00:02]} Qd5+ {[%emt 0:00:14]} 27. Kh3 {[%emt 0:00:26]} e5 {[%emt 0:00:39]} 28. Qb6 {[%emt 0:00:31]} Qd6 {[%emt 0:00:59]} 29. Qe3 {[%emt 0:00:37]} f4 {[%emt 0:00:43]} 30. gxf4 {[%emt 0:00:11]} exf4 {[%emt 0:00:47]} 31. Qb3+ {[%emt 0:00:36]} Kh8 {[%emt 0:00:43]} 32. Qc3 {[%emt 0:00:21]} b4 {[%emt 0:04:54]} 0-1

[Event "8th Gibraltar U16-Junior 2018"]
[Site "Caleta"]
[Date "2018.08.17"]
[Round "2"]
[White "Le, Vincent"]
[Black "Bansal, Saahil"]
[Result "0-1"]
[ECO "C02"]
[WhiteElo "1017"]
[BlackElo "1454"]
[Annotator "NA RC"]
[PlyCount "58"]
[EventDate "2018.08.17"]
[EventType "swiss"]
[EventCountry "GGB"]
[SourceTitle "playchess.com"]
[Source "ChessBase"]
[SourceQuality "1"]
[TimeControl "6600+10"]

1. e4 {[%emt 0:00:00]} e6 {[%emt 0:00:00]} 2. d4 {[%emt 0:00:00]} d5 {[%emt 0:00:04]} 3. e5 {[%emt 0:00:00]} c5 {[%emt 0:00:10]} 4. c3 {[%emt 0:00:00]} Qb6 {[%emt 0:00:05]} 5. Nf3 {[%emt 0:00:11]} Bd7 {[%emt 0:00:25]} 6. Be2 {[%emt 0:00:37]} Nc6 {[%emt 0:00:45]} 7. O-O {[%emt 0:00:28]} Rc8 {[%emt 0:00:04]} 8. Na3 {[%emt 0:00:29]} cxd4 {[%emt 0:00:56]} 9. cxd4 {[%emt 0:00:28]} Bxa3 {[%emt 0:00:40]} 10. bxa3 {[%emt 0:00:01]} Nge7 {[%emt 0:00:34]} 11. Be3 {[%emt 0:00:28]} Nf5 {[%emt 0:03:23]} 12. Bd2 {[%emt 0:00:35]} Ncxd4 {[%emt 0:00:39]} 13. Nxd4 {[%emt 0:01:02]} Nxd4 {[%emt 0:00:03]} 14. Be3 {[%emt 0:00:18]} Nxe2+ {[%emt 0:00:05]} 15. Qxe2 {[%emt 0:00:17]} d4 {[%emt 0:12:09]} 16. Bd2 {[%emt 0:00:03]} Bb5 {[%emt 0:00:35]} 17. Qg4 {[%emt 0:03:11]} Bxf1 {[%emt 0:00:24]} 18. Qxg7 {[%emt 0:00:37]} Rf8 {[%emt 0:04:20]} 19. Bb4 {[%emt 0:00:10]} Rc5 {[%emt 0:18:00]} 20. Rxf1 {[%emt 0:00:59]} a5 {[%emt 0:00:10]} 21. Bxc5 {[%emt 0:00:24]} Qxc5 {[%emt 0:00:06]} 22. Qxh7 {[%emt 0:00:31]} Qxe5 {[%emt 0:00:17]} 23. Qd3 {[%emt 0:00:39]} Ke7 {[%emt 0:00:29]} 24. f4 {[%emt 0:01:57]} Qd5 {[%emt 0:02:07]} 25. Rf2 {[%emt 0:04:18]} Rc8 {[%emt 0:01:29]} 26. h4 {[%emt 0:01:08]} Rc3 {[%emt 0:00:41]} 27. Qh7 {[%emt 0:01:14]} d3 {[%emt 0:01:51]} 28. Rd2 {[%emt 0:00:41]} Qd4+ {[%emt 0:00:46]} 29. Rf2 {[%emt 0:04:20]} d2 {[%emt 0:06:33]} 0-1

[Event "8th Gibraltar U16-Junior 2018"]
[Site "Caleta"]
[Date "2018.08.18"]
[Round "3"]
[White "Moreby, James"]
[Black "Ledesma Claros, Daniel"]
[Result "1/2-1/2"]
[ECO "B15"]
[WhiteElo "2084"]
[BlackElo "1954"]
[Annotator "NA RC"]
[PlyCount "34"]
[EventDate "2018.08.17"]
[EventType "swiss"]
[EventCountry "GGB"]
[SourceTitle "playchess.com"]
[Source "ChessBase"]
[SourceQuality "1"]
[TimeControl "6600+10"]

{[%evp 10,34,68,69,32767,44,70,32767,89,32767,87,72,76,37,68,120,92,32767,32767,32767,32767,152,166,190,190,213,195]} 1. e4 {[%emt 0:00:00]} g6 {[%emt 0:00:00]} 2. d4 {[%emt 0:00:00]} c6 {[%emt 0:00:20]} 3. Nc3 {[%emt 0:01:05]} Bg7 {[%emt 0:00:17]} 4. Be3 {[%emt 0:00:07]} d5 {[%emt 0:00:17]} 5. f3 {[%emt 0:00:07]} Nf6 {[%emt 0:03:47]} 6. e5 {[%emt 0:00:57] LiveBook: 18 Games} Nfd7 {[%emt 0:00:39] B15: Caro-Kann: 3 Nc3: 3...g6 and 3...dxe4 4 Nxe4 Nf6 5 Nxf6+ exf6} (6... Ng8 7. Qd2 h5 8. h4 Nh6 9. Nh3 Nf5 10. Bd3 Nxe3 11. Qxe3 Bh6 12. Ng5 e6 13. O-O-O b6 14. g4 Ba6 15. Bxa6 Nxa6 16. gxh5 gxh5 17. f4 Qe7 18. Qe2 Nc7 19. Qxh5 O-O-O 20. Kb1 Rdf8 21. Rde1 {½-½ (21) Arutinian,D (2556)-Kasparov,S (2493) Wroclaw 2012}) 7. Qd2 {[%emt 0:00:46]} e6 {[%emt 0:03:02]} 8. f4 {[%emt 0:05:14]} Bf8 {[%emt 0:06:53]} 9. O-O-O $146 {[%emt 0:02:57]} ({Predecessor:} 9. Nf3 c5 10. O-O-O Nc6 11. dxc5 Nxc5 12. Qf2 Qa5 13. Bb5 Nd7 14. Nd4 Nxd4 15. Bxd4 {0-1 (28) Lobato Lavin,A (2081)-Roa Alonso,S (2358) Madrid 2000}) 9... Qa5 {[%emt 0:01:14]} 10. Kb1 {[%emt 0:00:53]} h5 {[%emt 0:08:45]} 11. h4 {[%emt 0:12:08]} a6 {[%emt 0:00:44]} 12. g4 {[%emt 0:03:44]} hxg4 {[%emt 0:08:23]} 13. Qg2 {[%emt 0:00:06]} c5 {[%emt 0:03:04]} 14. Qxg4 {[%emt 0:02:35]} Nc6 {[%emt 0:01:17]} 15. Nf3 {[%emt 0:01:57]} cxd4 {[%emt 0:04:55]} 16. Nxd4 {[%emt 0:00:25]} Nc5 {[%emt 0:09:33]} 17. h5 {[%emt 0:02:21]} Bd7 $18 {[%emt 0:04:13]} 1/2-1/2